fUST/lending_fUST_20250819
["ID","MTS","AMOUNT","RATE_DAILY","PERIOD"]
[380141763,1755571862193,-480.0,0.00020547,2]
[380141764,1755571862204,-480.0,0.00020547,2]
[380141765,1755571862224,-3975.87,0.00020547,2]
[380141766,1755571862235,-658.64,0.00020547,2]
[380141767,1755571862244,-480.0,0.00020547,2]
[380141768,1755571862254,-728.69,0.00020547,2]
[380141769,1755571862263,-480.0,0.00020547,2]
[380141770,1755571862272,-480.0,0.00020547,2]
[380141771,1755571862281,-480.0,0.00020547,2]
[380141772,1755571862291,-780.52,0.00020547,2]
[380141773,1755571862300,-480.0,0.00020547,2]
[380141774,1755571862309,-480.0,0.00020547,2]
[380141775,1755571862320,-480.0,0.00020547,2]
[380141776,1755571862329,-2567.44,0.00020547,2]
[380141777,1755571862338,-480.0,0.00020547,2]
[380141778,1755571862347,-480.0,0.00020547,2]
[380141779,1755571862356,-738.51,0.00020547,2]
[380141780,1755571862366,-480.0,0.00020547,2]
[380141781,1755571862375,-255.11510845,0.00020547,2]
[380141782,1755571862384,-514.02116759,0.00020547,2]
[380141783,1755571862394,-480.0,0.00020547,2]
[380141784,1755571862403,-480.0,0.00020547,2]
[380141785,1755571862412,-480.0,0.00020547,2]
[380141786,1755571862421,-480.0,0.00020547,2]
[380141787,1755571862431,-824.41,0.00020547,2]
[380141788,1755571862440,-480.0,0.00020547,2]
[380141789,1755571862449,-480.0,0.00020547,2]
[380141790,1755571862458,-480.0,0.00020547,2]
[380141791,1755571862467,-480.0,0.00020547,2]
[380141792,1755571862476,-3849.98,0.00020547,2]
[380141793,1755571862485,-3849.98,0.00020547,2]
[380141794,1755571862494,-822.38,0.00020547,2]
[380141795,1755571862503,-480.0,0.00020547,2]
[380141796,1755571862512,-313.99853088,0.00020547,2]
[380141797,1755571862568,-166.00146912,0.00020547,2]
[380141798,1755571862578,-267.88927637,0.00020547,2]
[380141799,1755571862590,-407.03072363,0.00020547,2]
[380141800,1755571862599,-101.96456656,0.00020547,2]
[380141801,1755571862612,-378.03543344,0.00020547,2]
[380141802,1755571862622,-486.64447849,0.00020547,2]
[380141803,1755571862631,-480.0,0.00020547,2]
[380141804,1755571862642,-480.0,0.00020547,2]
[380141805,1755571862651,-1137.00250177,0.00020547,2]
[380141806,1755571862873,-337.4212176,0.00019178,2]
[380141807,1755571863077,-22.44442221,0.00019178,2]
[380141808,1755571863087,-481.07187548,0.00019178,2]
[380141809,1755571863098,-460.51489232,0.00019178,2]
[380141810,1755571863107,-480.0,0.00019178,2]
[380141811,1755571863117,-482.84548323,0.00019178,2]
[380141812,1755571863127,-262.401715,0.00019178,2]
[380141813,1755571863136,-480.0,0.00019178,2]
[380141814,1755571863146,-480.0,0.00019178,2]
[380141815,1755571863157,-480.0,0.00019452,2]
[380141816,1755571863166,-151.0,0.00019452,2]
[380141817,1755571863177,-151.0,0.00019452,2]
[380141818,1755571863187,-68.7022434,0.00019452,2]
[380141845,1755572005018,495.77475843,0.00027945,120]
[380141849,1755572158346,3200.0,0.00028767,120]
[380141866,1755572480641,-1200.0,0.00018899,2]
[380141867,1755572480664,-300.0,0.00018899,2]
[380141868,1755572480685,-317.53679619,0.000189,2]
[380141869,1755572480708,-500.0,0.000189,2]
[380141870,1755572480730,-500.0,0.000189,2]
[380141871,1755572480751,-500.0,0.000189,2]
[380141872,1755572480772,-500.0,0.000189,2]
[380141873,1755572480793,-500.0,0.000189,2]
[380141874,1755572480815,-369.17332321,0.000189,2]
[380141875,1755572480837,-3515.450206,0.00018978,2]
[380141876,1755572480858,-150.9674525,0.00019077,2]
[380141877,1755572480879,-300.0,0.00019077,2]
[380141878,1755572480900,-300.0,0.00019077,2]
[380141879,1755572480921,-300.0,0.00019077,2]
[380141880,1755572480941,-3140.59917815,0.00019078,2]
[380141881,1755572480965,-7606.27304395,0.00019078,2]
[380141882,1755572486516,-19714.18483524,0.00019078,2]
[380141883,1755572486542,-1000.0,0.00019078,2]
[380141884,1755572486567,-188.67,0.00019168,3]
[380141885,1755572486592,-566.03,0.00019168,3]
[380141886,1755572486614,-500.0,0.00019173,2]
[380141887,1755572486636,-12473.66486406,0.00019176,2]
[380141888,1755572486657,-500.0,0.00019177,2]
[380141889,1755572486680,-500.0,0.00019177,2]
[380141890,1755572486704,-500.0,0.00019177,2]
[380141891,1755572486731,-500.0,0.00019177,2]
[380141892,1755572486754,-500.0,0.00019177,2]
[380141893,1755572486777,-500.0,0.00019177,2]
[380141894,1755572486799,-500.0,0.00019177,2]
[380141895,1755572486820,-500.0,0.00019177,2]
[380141896,1755572486843,-500.0,0.00019177,2]
[380141897,1755572486864,-500.0,0.00019177,2]
[380141898,1755572486886,-500.0,0.00019177,2]
[380141899,1755572486908,-500.0,0.00019177,2]
[380141900,1755572486931,-500.0,0.00019177,2]
[380141901,1755572486953,-500.0,0.00019177,2]
[380141902,1755572486979,-500.0,0.00019177,2]
[380141903,1755572487002,-500.0,0.00019177,2]
[380141904,1755572487024,-500.0,0.00019177,2]
[380141905,1755572487048,-500.0,0.00019177,2]
[380141906,1755572487071,-542.50960492,0.00019177,2]
[380141907,1755572487094,-500.0,0.00019177,2]
[380141908,1755572487117,-384.6613521,0.00019177,2]
[380141909,1755572487141,-500.0,0.00019177,2]
[380141910,1755572487291,-500.0,0.00019177,2]
[380141911,1755572487319,-500.0,0.00019177,2]
[380141912,1755572487348,-500.0,0.00019177,2]
[380141913,1755572487375,-500.0,0.00019177,2]
[380141914,1755572487403,-500.0,0.00019177,2]
[380141915,1755572487432,-500.0,0.00019177,2]
[380141916,1755572487461,-500.0,0.00019177,2]
[380141917,1755572487498,-500.0,0.00019177,2]
[380141918,1755572487526,-500.0,0.00019177,2]
[380141919,1755572487552,-500.0,0.00019177,2]
[380141920,1755572487578,-380.63747458,0.00019177,2]
[380141921,1755572487605,-500.0,0.00019177,2]
[380141922,1755572487632,-500.0,0.00019177,2]
[380141923,1755572487657,-500.0,0.00019177,2]
[380141924,1755572487682,-500.0,0.00019177,2]
[380141925,1755572487706,-500.0,0.00019177,2]
[380141926,1755572487738,-500.0,0.00019177,2]
[380141927,1755572487761,-500.0,0.00019177,2]
[380141928,1755572487785,-500.0,0.00019177,2]
[380141929,1755572487807,-480.0,0.00019178,2]
[380141930,1755572487829,-480.0,0.00019178,2]
[380141931,1755572487852,-480.0,0.00019178,2]
[380141932,1755572487873,-430.24822289,0.00019178,2]
[380141933,1755572487895,-480.0,0.00019178,2]
[380141934,1755572487916,-460.36401838,0.00019178,2]
[380141935,1755572487938,-480.0,0.00019178,2]
[380141936,1755572487958,-480.97935764,0.00019178,2]
[380141937,1755572487982,-347.29097973,0.00019178,2]
[380141938,1755572488003,-460.0,0.00019178,2]
[380141939,1755572488024,-480.0,0.00019178,2]
[380141940,1755572488044,-190.75929046,0.00019178,2]
[380141953,1755572601106,26029.9308128,0.00018253,2]
[380141981,1755572754160,-222.56926363,0.000189,2]
[380141982,1755572754181,-60.06493488,0.00019078,2]
[380141984,1755572795654,159.266538,0.00013699,2]
[380141985,1755572830085,-702.68051307,0.00019078,2]
[380141986,1755572843084,-3572.40872292,0.00019078,2]
[380141987,1755572843106,-514.65070608,0.00019078,2]
[380141988,1755572843127,-153.32921867,0.00019166,2]
[380141989,1755572843151,-470.37863873,0.00019166,2]
[380141990,1755572843173,-377.34,0.00019168,3]
[380141991,1755572843195,-300.0,0.00019171,2]
[380141992,1755572843217,-1200.0,0.00019172,2]
[380141993,1755572843239,-1200.0,0.00019172,2]
[380141994,1755572843261,-500.0,0.00019173,2]
[380141995,1755572843283,-356.34548963,0.00019173,2]
[380141996,1755572843304,-506.4752791,0.00019173,2]
[380141997,1755572843328,-500.0,0.00019173,2]
[380141998,1755572843347,-482.05633307,0.00019178,2]
[380141999,1755572843368,-480.0,0.00019178,2]
[380142000,1755572843390,-480.0,0.00019178,2]
[380142001,1755572843411,-480.0,0.00019178,2]
[380142002,1755572843430,-589.96903364,0.00019178,2]
[380142003,1755572843450,-482.29603929,0.00019178,2]
[380142004,1755572843470,-482.18648314,0.00019178,2]
[380142005,1755572843490,-480.0,0.00019178,2]
[380142006,1755572843510,-482.33258602,0.00019178,2]
[380142007,1755572843532,-480.0,0.00019178,2]
[380142008,1755572843552,-482.65710949,0.00019178,2]
[380142009,1755572843572,-521.42,0.00019178,2]
[380142010,1755572843593,-480.0,0.00019178,2]
[380142011,1755572843614,-481.62265898,0.00019178,2]
[380142012,1755572843633,-480.0,0.00019178,2]
[380142013,1755572843654,-482.88706887,0.00019178,2]
[380142014,1755572843674,-203.03278108,0.00019178,2]
[380142015,1755572843697,-480.0,0.00019178,2]
[380142016,1755572843718,-477.04782362,0.00019178,2]
[380142017,1755572843739,-480.0,0.00019178,2]
[380142018,1755572843758,-482.55965697,0.00019178,2]
[380142019,1755572843779,-483.92508917,0.00019178,2]
[380142020,1755572843799,-421.92279107,0.00019178,2]
[380142021,1755572843820,-480.0,0.00019178,2]
[380142022,1755572843840,-482.16750129,0.00019178,2]
[380142023,1755572843860,-480.0,0.00019178,2]
[380142024,1755572843880,-480.0,0.00019178,2]
[380142025,1755572843900,-480.0,0.00019178,2]
[380142026,1755572843920,-480.0,0.00019178,2]
[380142027,1755572843940,-500.75965702,0.00019178,2]
[380142028,1755572843960,-480.70589439,0.00019178,2]
[380142029,1755572843980,-483.23857413,0.00019178,2]
[380142030,1755572844000,-482.05952225,0.00019178,2]
[380142031,1755572844022,-480.0,0.00019178,2]
[380142032,1755572844043,-481.15283774,0.00019178,2]
[380142033,1755572844063,-481.67438625,0.00019178,2]
[380142034,1755572844084,-480.0,0.00019178,2]
[380142035,1755572844105,-484.37530005,0.00019178,2]
[380142036,1755572844126,-480.0,0.00019178,2]
[380142037,1755572844149,-480.0,0.00019178,2]
[380142038,1755572844170,-403.78969608,0.00019178,2]
[380142039,1755572844190,-480.0,0.00019178,2]
[380142040,1755572844210,-480.0,0.00019178,2]
[380142041,1755572844230,-482.197353,0.00019178,2]
[380142042,1755572844250,-480.0,0.00019178,2]
[380142043,1755572844272,-464.36077038,0.00019178,2]
[380142044,1755572844292,-586.23863699,0.00019178,2]
[380142045,1755572844317,-480.0,0.00019178,2]
[380142046,1755572844338,-480.0,0.00019178,2]
[380142047,1755572844361,-480.0,0.00019178,2]
[380142048,1755572844381,-480.0,0.00019178,2]
[380142049,1755572844405,-480.0,0.00019178,2]
[380142050,1755572844427,-481.67989735,0.00019178,2]
[380142051,1755572844448,-480.0,0.00019178,2]
[380142052,1755572844468,-255.11510845,0.00019178,2]
[380142053,1755572844491,-480.0,0.00019178,2]
[380142054,1755572844513,-480.0,0.00019178,2]
[380142055,1755572844534,-920.84,0.00019178,2]
[380142056,1755572844554,-293.84759305,0.00019178,2]
[380142057,1755572844573,-350.51477965,0.00019178,2]
[380142058,1755572844593,-480.0,0.00019178,2]
[380142059,1755572844613,-461.58467737,0.00019178,2]
[380142060,1755572844733,-480.0,0.00019178,2]
[380142061,1755572844755,-480.0,0.00019178,2]
[380142062,1755572844778,-480.0,0.00019178,2]
[380142063,1755572844798,-480.0,0.00019178,2]
[380142064,1755572844819,-480.0,0.00019178,2]
[380142065,1755572844839,-480.0,0.00019178,2]
[380142066,1755572844858,-480.0,0.00019178,2]
[380142067,1755572844879,-480.0,0.00019178,2]
[380142068,1755572844899,-480.0,0.00019178,2]
[380142069,1755572844921,-465.53999292,0.00019178,2]
[380142070,1755572844940,-500.0,0.00019178,2]
[380142071,1755572844960,-450.22050197,0.00019178,2]
[380142072,1755572844980,-502.67417471,0.00019178,2]
[380142073,1755572844999,-481.25287398,0.00019178,2]
[380142074,1755572845020,-440.688789,0.00019178,2]
[380142075,1755572845039,-480.0,0.00019178,2]
[380142076,1755572845059,-467.43614002,0.00019178,2]
[380142077,1755572845079,-480.0,0.00019178,2]
[380142078,1755572845099,-839.31,0.00019178,2]
[380142079,1755572845119,-480.0,0.00019178,2]
[380142080,1755572845140,-480.0,0.00019178,2]
[380142081,1755572845161,-480.0,0.00019178,2]
[380142082,1755572845183,-480.0,0.00019178,2]
[380142083,1755572845204,-518.61,0.00019178,2]
[380142084,1755572845225,-266.53215119,0.00019178,2]
[380142085,1755572845246,-480.0,0.00019178,2]
[380142086,1755572845270,-3035.87,0.00019178,2]
[380142087,1755572845290,-480.0,0.00019178,2]
[380142088,1755572845311,-480.0,0.00019178,2]
[380142089,1755572845336,-480.0,0.00019178,2]
[380142090,1755572845359,-480.0,0.00019178,2]
[380142091,1755572845380,-480.0,0.00019178,2]
[380142092,1755572845401,-480.0,0.00019178,2]
[380142093,1755572845422,-297.86023083,0.00019178,2]
[380142094,1755572845445,-480.0,0.00019178,2]
[380142095,1755572845466,-480.0,0.00019178,2]
[380142096,1755572845489,-480.0,0.00019178,2]
[380142097,1755572845511,-6716.15,0.00019178,2]
[380142098,1755572845533,-500.0,0.00019178,2]
[380142099,1755572845554,-480.0,0.00019178,2]
[380142100,1755572845574,-480.0,0.00019178,2]
[380142101,1755572845595,-480.0,0.00019178,2]
[380142102,1755572845616,-480.0,0.00019178,2]
[380142103,1755572845636,-480.0,0.00019178,2]
[380142104,1755572845659,-480.0,0.00019178,2]
[380142105,1755572845680,-481.61570816,0.00019178,2]
[380142106,1755572845701,-480.0,0.00019178,2]
[380142107,1755572845721,-480.0,0.00019178,2]
[380142108,1755572845742,-154.46387255,0.00019178,2]
[380142110,1755572851079,-327.51836313,0.00019178,2]
[380142111,1755572851100,-480.0,0.00019178,2]
[380142112,1755572851122,-220.28349324,0.00019178,2]
[380142143,1755573035063,-359.34990265,0.000189,2]
[380142144,1755573035075,-210.47692106,0.00019166,2]
[380142145,1755573035244,-582.44088739,0.00019166,2]
[380142146,1755573035254,-517.51891633,0.00019173,2]
[380142147,1755573035264,-500.0,0.00019173,2]
[380142148,1755573035274,-300.0,0.00019177,2]
[380142149,1755573035284,-564.0,0.00019177,2]
[380142150,1755573035293,-176.40839148,0.00019178,2]
[380142151,1755573035304,-534.48,0.00019178,2]
[380142152,1755573035314,-480.0,0.00019178,2]
[380142153,1755573035324,-1628.01,0.00019178,2]
[380142154,1755573035333,-480.0,0.00019178,2]
[380142155,1755573035342,-480.0,0.00019178,2]
[380142156,1755573035351,-480.0,0.00019178,2]
[380142157,1755573035361,-480.0,0.00019178,2]
[380142158,1755573035374,-593.43148632,0.00019178,2]
[380142159,1755573035383,-480.0,0.00019178,2]
[380142160,1755573035393,-480.0,0.00019178,2]
[380142161,1755573035402,-480.0,0.00019178,2]
[380142162,1755573035412,-481.43828344,0.00019178,2]
[380142163,1755573035421,-480.0,0.00019178,2]
[380142164,1755573035431,-307.20480608,0.00019178,2]
[380142165,1755573035441,-480.0,0.00019178,2]
[380142166,1755573035451,-480.0,0.00019178,2]
[380142167,1755573035460,-404.33544045,0.00019178,2]
[380142168,1755573035473,-56.17308742,0.00019178,2]
[380142169,1755573035482,-329.33085934,0.00019178,2]
[380142188,1755573037896,-130.66914066,0.00019178,2]
[380142189,1755573037905,-517.72,0.00019178,2]
[380142190,1755573037914,-364.82527584,0.00019178,2]
[380142191,1755573037923,-209.62133207,0.00019178,2]
[380142192,1755573037933,-480.0,0.00019178,2]
[380142193,1755573037942,-480.0,0.00019178,2]
[380142194,1755573037951,-480.0,0.00019178,2]
[380142195,1755573037960,-480.0,0.00019178,2]
[380142196,1755573037969,-461.70746503,0.00019178,2]
[380142197,1755573037978,-482.15648392,0.00019178,2]
[380142198,1755573037987,-462.75855479,0.00019178,2]
[380142199,1755573037996,-480.0,0.00019178,2]
[380142200,1755573038005,-480.0,0.00019178,2]
[380142201,1755573038015,-482.95876656,0.00019178,2]
[380142202,1755573038024,-481.09507613,0.00019178,2]
[380142203,1755573038033,-483.75356212,0.00019178,2]
[380142204,1755573038042,-462.47871547,0.00019178,2]
[380142205,1755573038051,-482.48327103,0.00019178,2]
[380142206,1755573038060,-480.0,0.00019178,2]
[380142207,1755573038070,-707.0,0.00019178,2]
[380142208,1755573038079,-480.0,0.00019178,2]
[380142209,1755573038088,-460.62770357,0.00019178,2]
[380142210,1755573038097,-480.0,0.00019178,2]
[380142211,1755573038106,-481.78282701,0.00019178,2]
[380142212,1755573038115,-421.23807736,0.00019178,2]
[380142213,1755573038124,-689.35,0.00019178,2]
[380142214,1755573038133,-480.0,0.00019178,2]
[380142215,1755573038143,-480.0,0.00019178,2]
[380142216,1755573038153,-480.0,0.00019178,2]
[380142217,1755573038163,-480.64785339,0.00019178,2]
[380142218,1755573038172,-480.0,0.00019178,2]
[380142219,1755573038181,-480.0,0.00019178,2]
[380142220,1755573038191,-480.0,0.00019178,2]
[380142221,1755573038200,-481.51820273,0.00019178,2]
[380142222,1755573038209,-480.0,0.00019178,2]
[380142223,1755573038218,-480.0,0.00019178,2]
[380142224,1755573038228,-455.66030794,0.00019178,2]
[380142225,1755573038240,-24.33969206,0.00019178,2]
[380142226,1755573038250,-464.4641217,0.00019178,2]
[380142227,1755573038259,-480.0,0.00019178,2]
[380142228,1755573038270,-346.27909415,0.00019178,2]
[380142229,1755573038282,-133.72090585,0.00019178,2]
[380142230,1755573038292,-485.27235838,0.00019178,2]
[380142231,1755573038301,-118.91338907,0.00019178,2]
[380142232,1755573038313,-363.61301417,0.00019178,2]
[380142233,1755573038323,-198.60068793,0.00019178,2]
[380142234,1755573038333,-281.39931207,0.00019178,2]
[380142235,1755573038343,-480.0,0.00019178,2]
[380142236,1755573038353,-2793.31,0.00019178,2]
[380142237,1755573038363,-480.0,0.00019178,2]
[380142238,1755573038375,-480.0,0.00019178,2]
[380142239,1755573038384,-462.48198404,0.00019178,2]
[380142240,1755573038393,-481.06687499,0.00019178,2]
[380142241,1755573038403,-480.0,0.00019178,2]
[380142242,1755573038413,-480.0,0.00019178,2]
[380142243,1755573038422,-480.0,0.00019178,2]
[380142244,1755573038432,-480.0,0.00019178,2]
[380142245,1755573038441,-480.0,0.00019178,2]
[380142246,1755573038452,-480.0,0.00019178,2]
[380142247,1755573038461,-480.0,0.00019178,2]
[380142248,1755573038470,-480.0,0.00019178,2]
[380142249,1755573038479,-480.0,0.00019178,2]
[380142250,1755573038488,-480.0,0.00019178,2]
[380142251,1755573038498,-480.0,0.00019178,2]
[380142252,1755573038507,-480.0,0.00019178,2]
[380142253,1755573038517,-463.2741586,0.00019178,2]
[380142254,1755573038526,-719.59,0.00019178,2]
[380142255,1755573038536,-480.0,0.00019178,2]
[380142256,1755573038545,-480.0,0.00019178,2]
[380142257,1755573038554,-480.0,0.00019178,2]
[380142258,1755573038563,-480.40418838,0.00019178,2]
[380142259,1755573038572,-456.72195532,0.00019178,2]
[380142260,1755573038581,-1120.53,0.00019178,2]
[380142261,1755573038590,-480.0,0.00019178,2]
[380142262,1755573038599,-480.0,0.00019178,2]
[380142263,1755573038608,-500.0,0.00019178,2]
[380142264,1755573038617,-500.0,0.00019178,2]
[380142265,1755573038627,-562.43,0.00019178,2]
[380142266,1755573038636,-500.0,0.00019178,2]
[380142267,1755573038645,-500.0,0.00019178,2]
[380142268,1755573038655,-480.0,0.00019178,2]
[380142269,1755573038667,-489.5957141,0.00019178,2]
[380142270,1755573038676,-480.0,0.00019178,2]
[380142271,1755573038687,-465.96854256,0.00019178,2]
[380142272,1755573038695,-480.86468101,0.00019178,2]
[380142273,1755573038705,-480.0,0.00019178,2]
[380142274,1755573038713,-480.0,0.00019178,2]
[380142275,1755573038722,-480.0,0.00019178,2]
[380142276,1755573038731,-345.31416968,0.00019178,2]
[380142277,1755573038741,-480.0,0.00019178,2]
[380142278,1755573038750,-480.0,0.00019178,2]
[380142279,1755573038759,-344.20748236,0.00019178,2]
[380142280,1755573038768,-480.0,0.00019178,2]
[380142281,1755573038777,-480.0,0.00019178,2]
[380142282,1755573038786,-480.0,0.00019178,2]
[380142283,1755573038795,-461.60215222,0.00019178,2]
[380142284,1755573038804,-480.0,0.00019178,2]
[380142285,1755573038813,-480.0,0.00019178,2]
[380142286,1755573038822,-480.0,0.00019178,2]
[380142287,1755573038831,-480.0,0.00019178,2]
[380142288,1755573038840,-480.0,0.00019178,2]
[380142289,1755573038849,-480.0,0.00019178,2]
[380142290,1755573038859,-480.0,0.00019178,2]
[380142291,1755573038867,-481.02284409,0.00019178,2]
[380142292,1755573038877,-836.35,0.00019178,2]
[380142293,1755573038886,-481.1590474,0.00019178,2]
[380142294,1755573038896,-480.0,0.00019178,2]
[380142295,1755573038905,-480.0,0.00019178,2]
[380142296,1755573038914,-483.52904727,0.00019178,2]
[380142297,1755573038923,-480.71680172,0.00019178,2]
[380142298,1755573038933,-480.0,0.00019178,2]
[380142299,1755573038942,-480.0,0.00019178,2]
[380142300,1755573038951,-480.0,0.00019178,2]
[380142301,1755573038960,-480.0,0.00019178,2]
[380142302,1755573038969,-483.00890394,0.00019178,2]
[380142303,1755573038979,-480.0,0.00019178,2]
[380142304,1755573038988,-480.0,0.00019178,2]
[380142305,1755573038997,-480.0,0.00019178,2]
[380142306,1755573039007,-500.0,0.00019178,2]
[380142307,1755573039016,-500.0,0.00019178,2]
[380142308,1755573039025,-500.0,0.00019178,2]
[380142309,1755573039034,-500.0,0.00019178,2]
[380142310,1755573039043,-500.0,0.00019178,2]
[380142311,1755573039052,-273.97241494,0.00019178,2]
[380142312,1755573039061,-480.0,0.00019178,2]
[380142313,1755573039070,-480.0,0.00019178,2]
[380142314,1755573039079,-480.0,0.00019178,2]
[380142315,1755573039088,-463.66038074,0.00019178,2]
[380142316,1755573039096,-184.57120076,0.00019178,2]
[380142317,1755573039107,-481.74343099,0.00019178,2]
[380142318,1755573039115,-291.42478232,0.00019178,2]
[380142319,1755573039124,-480.0,0.00019178,2]
[380142320,1755573039134,-480.0,0.00019178,2]
[380142321,1755573039143,-2003.27,0.00019178,2]
[380142322,1755573039152,-480.0,0.00019178,2]
[380142323,1755573039161,-481.46092898,0.00019178,2]
[380142324,1755573039170,-480.0,0.00019178,2]
[380142325,1755573039179,-481.67781503,0.00019178,2]
[380142326,1755573039189,-480.0,0.00019178,2]
[380142327,1755573039199,-480.0,0.00019178,2]
[380142328,1755573039208,-509.81,0.00019178,2]
[380142329,1755573039217,-480.0,0.00019178,2]
[380142330,1755573039226,-853.16,0.00019178,2]
[380142331,1755573039236,-480.0,0.00019178,2]
[380142332,1755573039245,-480.0,0.00019178,2]
[380142333,1755573039255,-480.0,0.00019178,2]
[380142334,1755573039264,-480.0,0.00019178,2]
[380142335,1755573039273,-480.0,0.00019178,2]
[380142336,1755573039284,-480.0,0.00019178,2]
[380142337,1755573039293,-1633.9,0.00019178,2]
[380142338,1755573039302,-480.0,0.00019178,2]
[380142339,1755573039313,-480.0,0.00019178,2]
[380142340,1755573039322,-480.0,0.00019178,2]
[380142341,1755573039331,-480.0,0.00019178,2]
[380142342,1755573039340,-445.97340209,0.00019178,2]
[380142343,1755573039350,-965.84,0.00019178,2]
[380142344,1755573039359,-1023.57,0.00019178,2]
[380142345,1755573039369,-519.79,0.00019178,2]
[380142346,1755573039380,-480.0,0.00019178,2]
[380142347,1755573039389,-480.0,0.00019178,2]
[380142348,1755573039399,-480.0,0.00019178,2]
[380142350,1755573039408,-480.0,0.00019178,2]
[380142351,1755573039418,-480.0,0.00019178,2]
[380142352,1755573039427,-480.0,0.00019178,2]
[380142353,1755573039437,-420.0,0.00019178,2]
[380142354,1755573039448,-483.51285878,0.00019178,2]
[380142355,1755573039459,-480.0,0.00019178,2]
[380142357,1755573039469,-440.96460331,0.00019178,2]
[380142359,1755573039478,-480.0,0.00019178,2]
[380142361,1755573039487,-480.0,0.00019178,2]
[380142362,1755573039496,-480.0,0.00019178,2]
[380142363,1755573039505,-593.14,0.00019178,2]
[380142364,1755573039514,-480.0,0.00019178,2]
[380142365,1755573039523,-480.0,0.00019178,2]
[380142366,1755573039532,-663.13,0.00019178,2]
[380142367,1755573039541,-427.10419083,0.00019178,2]
[380142369,1755573039551,-15.97112552,0.00019178,2]
[380142370,1755573039578,-464.02887448,0.00019178,2]
[380142371,1755573039587,-480.0,0.00019178,2]
[380142372,1755573039597,-481.80672675,0.00019178,2]
[380142373,1755573039746,-480.0,0.00019178,2]
[380142374,1755573039756,-480.0,0.00019178,2]
[380142375,1755573039765,-480.0,0.00019178,2]
[380142376,1755573039774,-675.11,0.00019178,2]
[380142377,1755573039783,-480.0,0.00019178,2]
[380142378,1755573039792,-480.0,0.00019178,2]
[380142379,1755573039801,-480.0,0.00019178,2]
[380142380,1755573039810,-363.49161118,0.00019178,2]
[380142381,1755573039819,-480.0,0.00019178,2]
[380142382,1755573039828,-480.0,0.00019178,2]
[380142383,1755573039837,-651.9,0.00019178,2]
[380142384,1755573039846,-388.54989446,0.00019178,2]
[380142385,1755573039855,-480.0,0.00019178,2]
[380142386,1755573039864,-480.0,0.00019178,2]
[380142387,1755573039873,-480.0,0.00019178,2]
[380142388,1755573039882,-494.45,0.00019178,2]
[380142389,1755573039891,-480.0,0.00019178,2]
[380142390,1755573039900,-960.93,0.00019178,2]
[380142391,1755573039909,-481.15818836,0.00019178,2]
[380142392,1755573039918,-260.25491125,0.00019178,2]
[380142393,1755573039939,-219.74508875,0.00019178,2]
[380142394,1755573039948,-480.0,0.00019178,2]
[380142395,1755573039957,-480.0,0.00019178,2]
[380142396,1755573039966,-249.11699761,0.00019178,2]
[380142397,1755573039975,-955.61,0.00019178,2]
[380142398,1755573039984,-480.0,0.00019178,2]
[380142399,1755573039993,-480.0,0.00019178,2]
[380142400,1755573040002,-480.0,0.00019178,2]
[380142401,1755573040012,-2155.72,0.00019178,2]